[Event "Titled Tuesday Blitz December 20 Early 2022"]
[White "wonderfultime"]
[Black "manitodeplomo"]
[WhiteElo "3066"]
[BlackElo "2639"]
[Result "1-0"]
[Round "02"]
[TimeControl "180+2"]
[Date "2022.12.20"]
[WhiteClock "0:00:15"]
[BlackClock "0:00:01"]

1. d4 {[%clk 0:03:00]}  Nf6 {[%clk 0:02:33]} 2. Nf3 {[%clk 0:02:59]}  e6 {[%clk 0:02:33]} 3. Bf4 {[%clk 0:02:59]}  c5 {[%clk 0:02:31]} 4. c3 {[%clk 0:02:59]}  Be7 {[%clk 0:02:31]} 5. e3 {[%clk 0:03:00]}  O-O {[%clk 0:02:28]} 6. Nbd2 {[%clk 0:02:59]}  b6 {[%clk 0:02:29]} 7. Bd3 {[%clk 0:02:59]}  Ba6 {[%clk 0:02:28]} 8. Bxa6 {[%clk 0:02:58]}  Nxa6 {[%clk 0:02:29]} 9. O-O {[%clk 0:02:58]}  Qc8 {[%clk 0:02:29]} 10. Qe2 {[%clk 0:02:52]}  Nb8 {[%clk 0:02:27]} 11. e4 {[%clk 0:02:50]}  Qa6 {[%clk 0:02:27]} 12. Qe3 {[%clk 0:02:45]}  cxd4 {[%clk 0:02:23]} 13. cxd4 {[%clk 0:02:44]}  Nc6 {[%clk 0:02:20]} 14. a3 {[%clk 0:02:44]}  Rfc8 {[%clk 0:02:10]} 15. b4 {[%clk 0:02:25]}  Qa4 {[%clk 0:01:54]} 16. Qd3 {[%clk 0:01:26]}  d5 {[%clk 0:01:38]} 17. e5 {[%clk 0:01:25]}  Nd7 {[%clk 0:01:37]} 18. Bg5 {[%clk 0:01:19]}  Bf8 {[%clk 0:01:36]} 19. h4 {[%clk 0:01:15]}  a5 {[%clk 0:01:34]} 20. b5 {[%clk 0:01:16]}  Na7 {[%clk 0:01:33]} 21. Rfb1 {[%clk 0:01:16]}  Rc7 {[%clk 0:01:30]} 22. Be3 {[%clk 0:01:09]}  Rac8 {[%clk 0:01:30]} 23. Ng5 {[%clk 0:01:08]}  Qc2 {[%clk 0:01:28]} 24. Qf1 {[%clk 0:01:04]}  h6 {[%clk 0:01:26]} 25. Ngf3 {[%clk 0:01:00]}  a4 {[%clk 0:01:03]} 26. g4 {[%clk 0:00:56]}  Rc3 {[%clk 0:01:01]} 27. h5 {[%clk 0:00:42]}  Bxa3 {[%clk 0:00:52]} 28. Ne1 {[%clk 0:00:36]}  Qh7 {[%clk 0:00:43]} 29. Qe2 {[%clk 0:00:34]}  f6 {[%clk 0:00:15]} 30. exf6 {[%clk 0:00:26]}  gxf6 {[%clk 0:00:10]} 31. Bf4 {[%clk 0:00:26]}  Kf7 {[%clk 0:00:08]} 32. Ndf3 {[%clk 0:00:23]}  Qe4 {[%clk 0:00:07]} 33. Qxe4 {[%clk 0:00:20]}  dxe4 {[%clk 0:00:07]} 34. Nh2 {[%clk 0:00:19]}  e5 {[%clk 0:00:06]} 35. dxe5 {[%clk 0:00:18]}  Nxe5 {[%clk 0:00:07]} 36. Bxh6 {[%clk 0:00:17]}  R8c5 {[%clk 0:00:06]} 37. Bd2 {[%clk 0:00:15]}  Rxb5 {[%clk 0:00:01]} 38. Bxc3 {[%clk 0:00:15]} 1-0


[Site "https://www.chess.com"]

[Event "Titled Tuesday Blitz December 20 Early 2022"]
[White "APOKALIPSA13"]
[Black "Sovetov, Oleksandr"]
[BlackFideId "34105786"]
[WhiteElo "2220"]
[BlackElo "1976"]
[Result "0-1"]
[Round "03"]
[TimeControl "180+2"]
[Date "2022.12.20"]
[WhiteClock "0:00:03"]
[BlackClock "0:00:54"]

1. e4 {[%clk 0:02:57]}  c5 {[%clk 0:02:59]} 2. Nc3 {[%clk 0:02:56]}  e6 {[%clk 0:02:57]} 3. Nf3 {[%clk 0:02:55]}  Nc6 {[%clk 0:02:57]} 4. d4 {[%clk 0:02:45]}  cxd4 {[%clk 0:02:57]} 5. Nxd4 {[%clk 0:02:46]}  Nf6 {[%clk 0:02:57]} 6. Nxc6 {[%clk 0:02:44]}  bxc6 {[%clk 0:02:58]} 7. e5 {[%clk 0:02:42]}  Nd5 {[%clk 0:02:55]} 8. Nxd5 {[%clk 0:02:40]}  cxd5 {[%clk 0:02:54]} 9. c3 {[%clk 0:02:40]}  d6 {[%clk 0:02:52]} 10. Bf4 {[%clk 0:02:25]}  dxe5 {[%clk 0:02:36]} 11. Bxe5 {[%clk 0:02:26]}  f6 {[%clk 0:02:36]} 12. Bg3 {[%clk 0:01:49]}  Bc5 {[%clk 0:02:28]} 13. Qa4+ {[%clk 0:01:29]}  Bd7 {[%clk 0:02:28]} 14. Bb5 {[%clk 0:01:29]}  a6 {[%clk 0:02:25]} 15. Bxd7+ {[%clk 0:01:23]}  Qxd7 {[%clk 0:02:25]} 16. Qxd7+ {[%clk 0:01:16]}  Kxd7 {[%clk 0:02:25]} 17. O-O {[%clk 0:01:14]}  Bd6 {[%clk 0:02:25]} 18. Bxd6 {[%clk 0:01:09]}  Kxd6 {[%clk 0:02:26]} 19. Rad1 {[%clk 0:01:09]}  Rhc8 {[%clk 0:02:25]} 20. Rd2 {[%clk 0:01:07]}  a5 {[%clk 0:02:23]} 21. Re1 {[%clk 0:01:07]}  a4 {[%clk 0:02:21]} 22. a3 {[%clk 0:01:05]}  Rab8 {[%clk 0:02:20]} 23. Rde2 {[%clk 0:01:01]}  e5 {[%clk 0:02:18]} 24. Rd2 {[%clk 0:00:59]}  Rb5 {[%clk 0:02:17]} 25. Red1 {[%clk 0:00:57]}  Ke6 {[%clk 0:02:15]} 26. Re1 {[%clk 0:00:48]}  Rcb8 {[%clk 0:02:14]} 27. Ree2 {[%clk 0:00:47]}  g5 {[%clk 0:02:08]} 28. f3 {[%clk 0:00:44]}  h5 {[%clk 0:02:08]} 29. Kf2 {[%clk 0:00:41]}  g4 {[%clk 0:02:04]} 30. f4 {[%clk 0:00:40]}  h4 {[%clk 0:01:57]} 31. fxe5 {[%clk 0:00:39]}  fxe5 {[%clk 0:01:58]} 32. h3 {[%clk 0:00:35]}  Rf8+ {[%clk 0:01:52]} 33. Kg1 {[%clk 0:00:29]}  g3 {[%clk 0:01:48]} 34. Rd1 {[%clk 0:00:28]}  Rbb8 {[%clk 0:01:19]} 35. Rde1 {[%clk 0:00:27]}  Rf5 {[%clk 0:01:18]} 36. Rf1 {[%clk 0:00:24]}  Rbf8 {[%clk 0:01:17]} 37. Rxf5 {[%clk 0:00:24]}  Rxf5 {[%clk 0:01:18]} 38. Rd2 {[%clk 0:00:22]}  Rf4 {[%clk 0:01:08]} 39. Re2 {[%clk 0:00:20]}  e4 {[%clk 0:01:05]} 40. Rd2 {[%clk 0:00:18]}  Ke5 {[%clk 0:01:06]} 41. Re2 {[%clk 0:00:18]}  d4 {[%clk 0:01:02]} 42. cxd4+ {[%clk 0:00:17]}  Kxd4 {[%clk 0:01:02]} 43. Rc2 {[%clk 0:00:17]}  e3 {[%clk 0:01:01]} 44. Rc1 {[%clk 0:00:12]}  e2 {[%clk 0:01:01]} 45. Re1 {[%clk 0:00:12]}  Ke3 {[%clk 0:01:01]} 46. Rb1 {[%clk 0:00:06]}  Kd2 {[%clk 0:00:58]} 47. b4 {[%clk 0:00:05]}  axb3 {[%clk 0:00:54]} 48. a4 {[%clk 0:00:05]}  Kc2 {[%clk 0:00:52]} 49. Re1 {[%clk 0:00:03]}  Kd2 {[%clk 0:00:51]} 50. Rb1 {[%clk 0:00:03]}  e1=Q+ {[%clk 0:00:52]} 51. Rxe1 {[%clk 0:00:03]}  Kxe1 {[%clk 0:00:53]} 52. a5 {[%clk 0:00:03]}  Rf1# {[%clk 0:00:54]} 0-1


[Site "https://www.chess.com"]

[Event "Titled Tuesday Blitz December 20 Early 2022"]
[White "Abundo, Casto"]
[Black "Misanik, Peter"]
[WhiteFideId "5200512"]
[BlackFideId "14921421"]
[WhiteElo "2175"]
[BlackElo "1785"]
[Result "1/2-1/2"]
[Round "03"]
[TimeControl "180+2"]
[Date "2022.12.20"]
[WhiteClock "0:00:04"]
[BlackClock "0:00:16"]

1. e4 {[%clk 0:03:00]}  c5 {[%clk 0:03:00]} 2. Nf3 {[%clk 0:03:00]}  d6 {[%clk 0:03:00]} 3. d4 {[%clk 0:03:01]}  cxd4 {[%clk 0:03:01]} 4. Nxd4 {[%clk 0:03:02]}  Nf6 {[%clk 0:03:02]} 5. Nc3 {[%clk 0:03:03]}  a6 {[%clk 0:03:02]} 6. Rg1 {[%clk 0:03:03]}  b5 {[%clk 0:03:00]} 7. a4 {[%clk 0:03:02]}  b4 {[%clk 0:02:58]} 8. Nd5 {[%clk 0:03:02]}  Nxe4 {[%clk 0:02:56]} 9. Bc4 {[%clk 0:03:02]}  e6 {[%clk 0:02:55]} 10. Qe2 {[%clk 0:03:02]}  Nc5 {[%clk 0:02:54]} 11. c3 {[%clk 0:02:57]}  b3 {[%clk 0:02:35]} 12. Nxb3 {[%clk 0:02:16]}  Nxb3 {[%clk 0:02:34]} 13. Bxb3 {[%clk 0:02:16]}  Nc6 {[%clk 0:02:32]} 14. Bg5 {[%clk 0:01:48]}  Qa5 {[%clk 0:02:19]} 15. Bh4 {[%clk 0:01:40]}  Ne5 {[%clk 0:02:11]} 16. Nb4 {[%clk 0:01:34]}  Rb8 {[%clk 0:02:10]} 17. O-O-O {[%clk 0:01:32]}  Rxb4 {[%clk 0:01:58]} 18. cxb4 {[%clk 0:01:27]}  Qxb4 {[%clk 0:01:59]} 19. Qxe5 {[%clk 0:01:23]}  Qxb3 {[%clk 0:01:25]} 20. Qd4 {[%clk 0:01:08]}  e5 {[%clk 0:01:19]} 21. Qxe5+ {[%clk 0:00:56]}  Be6 {[%clk 0:01:19]} 22. Qd4 {[%clk 0:00:50]}  Be7 {[%clk 0:01:19]} 23. Rd3 {[%clk 0:00:45]}  Qa2 {[%clk 0:01:14]} 24. Ra3 {[%clk 0:00:26]}  Qd5 {[%clk 0:01:12]} 25. Qxd5 {[%clk 0:00:26]}  Bxd5 {[%clk 0:01:13]} 26. Re1 {[%clk 0:00:25]}  Be6 {[%clk 0:01:13]} 27. Bxe7 {[%clk 0:00:23]}  Kxe7 {[%clk 0:01:14]} 28. Rc3 {[%clk 0:00:20]}  Kd7 {[%clk 0:01:14]} 29. Kc2 {[%clk 0:00:18]}  Rb8 {[%clk 0:01:14]} 30. b3 {[%clk 0:00:18]}  Rb4 {[%clk 0:01:14]} 31. Rd1 {[%clk 0:00:18]}  Rf4 {[%clk 0:01:09]} 32. Rd2 {[%clk 0:00:18]}  h5 {[%clk 0:01:09]} 33. g3 {[%clk 0:00:18]}  Rb4 {[%clk 0:01:08]} 34. h4 {[%clk 0:00:19]}  f6 {[%clk 0:01:07]} 35. Kb2 {[%clk 0:00:19]}  g5 {[%clk 0:00:53]} 36. hxg5 {[%clk 0:00:13]}  fxg5 {[%clk 0:00:54]} 37. Rcd3 {[%clk 0:00:14]}  Ke7 {[%clk 0:00:53]} 38. Rxd6 {[%clk 0:00:10]}  Rxb3+ {[%clk 0:00:50]} 39. Kc2 {[%clk 0:00:10]}  Ra3 {[%clk 0:00:49]} 40. Rxa6 {[%clk 0:00:10]}  Kf7 {[%clk 0:00:48]} 41. Rdd6 {[%clk 0:00:08]}  Ra2+ {[%clk 0:00:38]} 42. Kb1 {[%clk 0:00:08]}  Re2 {[%clk 0:00:39]} 43. Kc1 {[%clk 0:00:03]}  h4 {[%clk 0:00:34]} 44. gxh4 {[%clk 0:00:03]}  gxh4 {[%clk 0:00:34]} 45. Ra7+ {[%clk 0:00:04]}  Kg6 {[%clk 0:00:23]} 46. Re7 {[%clk 0:00:02]}  Kf6 {[%clk 0:00:24]} 47. Rh7 {[%clk 0:00:02]}  Kg5 {[%clk 0:00:23]} 48. a5 {[%clk 0:00:02]}  Bf5 {[%clk 0:00:20]} 49. Rh8 {[%clk 0:00:03]}  Rc2+ {[%clk 0:00:19]} 50. Kd1 {[%clk 0:00:03]}  Ra2 {[%clk 0:00:20]} 51. a6 {[%clk 0:00:03]}  h3 {[%clk 0:00:19]} 52. Ke1 {[%clk 0:00:04]}  Ra1+ {[%clk 0:00:15]} 53. Ke2 {[%clk 0:00:04]}  Ra2+ {[%clk 0:00:16]} 54. Kf3 {[%clk 0:00:05]}  Ra3+ {[%clk 0:00:16]} 55. Ke2 {[%clk 0:00:05]}  Bg4+ {[%clk 0:00:16]} 56. Kd2 {[%clk 0:00:05]}  Bf5 {[%clk 0:00:17]} 57. Rd5 {[%clk 0:00:05]}  Kg6 {[%clk 0:00:17]} 58. Rd6+ {[%clk 0:00:05]}  Kg5 {[%clk 0:00:17]} 59. Rd5 {[%clk 0:00:04]}  Kg6 {[%clk 0:00:17]} 60. Rd6+ {[%clk 0:00:04]}  Kg5 {[%clk 0:00:16]} 1/2-1/2


[Site "https://www.chess.com"]

[Event "Titled Tuesday Blitz December 20 Early 2022"]
[White "AlexPapasimakopoulos"]
[Black "Fera, Aryanti"]
[BlackFideId "7118988"]
[WhiteElo "2708"]
[BlackElo "1770"]
[Result "0-1"]
[Round "03"]
[TimeControl "180+2"]
[Date "2022.12.20"]
[WhiteClock "0:01:35"]
[BlackClock "0:01:21"]

1. d4 {[%clk 0:03:00]}  d5 {[%clk 0:02:57]} 2. c4 {[%clk 0:03:01]}  e6 {[%clk 0:02:57]} 3. Nc3 {[%clk 0:03:01]}  Bb4 {[%clk 0:02:56]} 4. cxd5 {[%clk 0:03:01]}  exd5 {[%clk 0:02:56]} 5. Qa4+ {[%clk 0:03:02]}  Nc6 {[%clk 0:02:56]} 6. Nf3 {[%clk 0:03:03]}  Ne7 {[%clk 0:02:47]} 7. Bf4 {[%clk 0:02:57]}  O-O {[%clk 0:02:44]} 8. e3 {[%clk 0:02:57]}  a6 {[%clk 0:02:43]} 9. Be2 {[%clk 0:02:57]}  Bd6 {[%clk 0:02:36]} 10. Bg3 {[%clk 0:02:54]}  Bf5 {[%clk 0:02:33]} 11. O-O {[%clk 0:02:45]}  Bxg3 {[%clk 0:02:33]} 12. hxg3 {[%clk 0:02:46]}  Qd6 {[%clk 0:02:34]} 13. Rfc1 {[%clk 0:02:45]}  h6 {[%clk 0:02:31]} 14. a3 {[%clk 0:02:46]}  b5 {[%clk 0:02:16]} 15. Qd1 {[%clk 0:02:42]}  Na5 {[%clk 0:02:17]} 16. b3 {[%clk 0:02:32]}  Rfc8 {[%clk 0:02:02]} 17. Ra2 {[%clk 0:02:24]}  Ng6 {[%clk 0:01:42]} 18. Nd2 {[%clk 0:02:19]}  Nb7 {[%clk 0:01:39]} 19. b4 {[%clk 0:02:17]}  c6 {[%clk 0:01:39]} 20. Nb3 {[%clk 0:02:15]}  a5 {[%clk 0:01:40]} 21. Nc5 {[%clk 0:02:08]}  Nxc5 {[%clk 0:01:26]} 22. dxc5 {[%clk 0:02:07]}  Qf6 {[%clk 0:01:25]} 23. Raa1 {[%clk 0:01:43]}  axb4 {[%clk 0:01:25]} 24. axb4 {[%clk 0:01:44]}  Rxa1 {[%clk 0:01:25]} 25. Rxa1 {[%clk 0:01:43]}  Qxc3 {[%clk 0:01:25]} 26. Ra7 {[%clk 0:01:35]}  Qxb4 {[%clk 0:01:22]} 27. Qc1 {[%clk 0:01:35]}  Qb1 {[%clk 0:01:21]} 0-1


[Site "https://www.chess.com"]

[Event "Titled Tuesday Blitz December 20 Early 2022"]
[White "AlmasChampion1"]
[Black "JaloliddinIlkhomi"]
[WhiteElo "2747"]
[BlackElo "2533"]
[Result "1/2-1/2"]
[Round "03"]
[TimeControl "180+2"]
[Date "2022.12.20"]
[WhiteClock "0:00:10"]
[BlackClock "0:00:03"]

1. e4 {[%clk 0:03:00]}  e6 {[%clk 0:02:59]} 2. d4 {[%clk 0:02:52]}  d5 {[%clk 0:02:59]} 3. Nc3 {[%clk 0:02:53]}  Bb4 {[%clk 0:02:59]} 4. Ne2 {[%clk 0:02:53]}  dxe4 {[%clk 0:02:51]} 5. a3 {[%clk 0:02:53]}  Be7 {[%clk 0:02:49]} 6. Nxe4 {[%clk 0:02:52]}  Nf6 {[%clk 0:02:50]} 7. Nxf6+ {[%clk 0:02:53]}  Bxf6 {[%clk 0:02:50]} 8. Be3 {[%clk 0:02:53]}  b6 {[%clk 0:02:50]} 9. Qd2 {[%clk 0:02:54]}  Bb7 {[%clk 0:02:50]} 10. O-O-O {[%clk 0:02:55]}  Nd7 {[%clk 0:02:50]} 11. Rg1 {[%clk 0:02:56]}  Qe7 {[%clk 0:02:50]} 12. g4 {[%clk 0:02:56]}  h6 {[%clk 0:02:50]} 13. f4 {[%clk 0:02:56]}  g5 {[%clk 0:02:33]} 14. Bg2 {[%clk 0:02:55]}  O-O-O {[%clk 0:02:31]} 15. Bxb7+ {[%clk 0:02:49]}  Kxb7 {[%clk 0:02:32]} 16. Nc3 {[%clk 0:02:49]}  gxf4 {[%clk 0:02:30]} 17. Bxf4 {[%clk 0:02:50]}  Bg5 {[%clk 0:02:31]} 18. Rdf1 {[%clk 0:02:49]}  Rhg8 {[%clk 0:01:43]} 19. Qg2+ {[%clk 0:02:42]}  Kb8 {[%clk 0:01:41]} 20. Kb1 {[%clk 0:02:38]}  Bxf4 {[%clk 0:01:39]} 21. Rxf4 {[%clk 0:02:39]}  f5 {[%clk 0:01:40]} 22. Qe2 {[%clk 0:02:31]}  Nf6 {[%clk 0:01:34]} 23. h3 {[%clk 0:02:28]}  Nd5 {[%clk 0:01:32]} 24. Nxd5 {[%clk 0:02:26]}  Rxd5 {[%clk 0:01:33]} 25. Re1 {[%clk 0:02:26]}  fxg4 {[%clk 0:01:29]} 26. hxg4 {[%clk 0:02:26]}  Rdg5 {[%clk 0:01:27]} 27. Re4 {[%clk 0:02:13]}  Qg7 {[%clk 0:01:12]} 28. Rxe6 {[%clk 0:02:12]}  Qxd4 {[%clk 0:01:13]} 29. Rxh6 {[%clk 0:02:10]}  Rxg4 {[%clk 0:01:07]} 30. Re6 {[%clk 0:02:03]}  Rg1 {[%clk 0:00:43]} 31. Qh2 {[%clk 0:02:03]}  R8g2 {[%clk 0:00:32]} 32. Qh3 {[%clk 0:01:46]}  Rxe1+ {[%clk 0:00:06]} 33. Rxe1 {[%clk 0:01:47]}  Rg1 {[%clk 0:00:07]} 34. Qe6 {[%clk 0:01:47]}  Rxe1+ {[%clk 0:00:06]} 35. Qxe1 {[%clk 0:01:48]}  Qd8 {[%clk 0:00:07]} 36. b3 {[%clk 0:01:48]}  Qd5 {[%clk 0:00:07]} 37. a4 {[%clk 0:01:48]}  Qc6 {[%clk 0:00:07]} 38. Kb2 {[%clk 0:01:48]}  a5 {[%clk 0:00:08]} 39. Qe5 {[%clk 0:01:47]}  Kb7 {[%clk 0:00:08]} 40. c3 {[%clk 0:01:45]}  Qg2+ {[%clk 0:00:09]} 41. Ka3 {[%clk 0:01:45]}  Qh1 {[%clk 0:00:10]} 42. b4 {[%clk 0:01:45]}  Qa1+ {[%clk 0:00:10]} 43. Kb3 {[%clk 0:01:46]}  Qd1+ {[%clk 0:00:09]} 44. Kc4 {[%clk 0:01:46]}  Qxa4 {[%clk 0:00:07]} 45. Qe7 {[%clk 0:01:40]}  Qa2+ {[%clk 0:00:07]} 46. Kd4 {[%clk 0:01:30]}  axb4 {[%clk 0:00:07]} 47. cxb4 {[%clk 0:01:27]}  Qd2+ {[%clk 0:00:07]} 48. Kc4 {[%clk 0:01:25]}  Qc2+ {[%clk 0:00:07]} 49. Kd4 {[%clk 0:01:25]}  Qd1+ {[%clk 0:00:08]} 50. Kc4 {[%clk 0:01:25]}  Qf1+ {[%clk 0:00:09]} 51. Kb3 {[%clk 0:01:25]}  Qb5 {[%clk 0:00:08]} 52. Qe4+ {[%clk 0:01:22]}  Qc6 {[%clk 0:00:08]} 53. Qe5 {[%clk 0:01:22]}  Qf3+ {[%clk 0:00:08]} 54. Kb2 {[%clk 0:01:19]}  Kc6 {[%clk 0:00:06]} 55. Qe8+ {[%clk 0:01:15]}  Kb7 {[%clk 0:00:05]} 56. Qe5 {[%clk 0:01:14]}  Qf7 {[%clk 0:00:04]} 57. Qe4+ {[%clk 0:01:13]}  c6 {[%clk 0:00:04]} 58. Qd4 {[%clk 0:01:13]}  Qd5 {[%clk 0:00:03]} 59. Qe3 {[%clk 0:01:12]}  Ka6 {[%clk 0:00:03]} 60. Ka3 {[%clk 0:01:09]}  Kb7 {[%clk 0:00:03]} 61. Qe7+ {[%clk 0:01:09]}  Ka6 {[%clk 0:00:04]} 62. Qe2+ {[%clk 0:01:09]}  Qb5 {[%clk 0:00:04]} 63. Qf3 {[%clk 0:01:08]}  Qc4 {[%clk 0:00:03]} 64. Qe3 {[%clk 0:01:02]}  Kb5 {[%clk 0:00:03]} 65. Qe5+ {[%clk 0:01:02]}  Qd5 {[%clk 0:00:04]} 66. Qe2+ {[%clk 0:01:01]}  Qc4 {[%clk 0:00:04]} 67. Qh5+ {[%clk 0:01:02]}  Ka6 {[%clk 0:00:04]} 68. Qf3 {[%clk 0:01:01]}  Qd5 {[%clk 0:00:04]} 69. Qe2+ {[%clk 0:01:00]}  b5 {[%clk 0:00:04]} 70. Qe3 {[%clk 0:00:56]}  Kb7 {[%clk 0:00:04]} 71. Qe7+ {[%clk 0:00:56]}  Kb6 {[%clk 0:00:05]} 72. Qe3+ {[%clk 0:00:55]}  Kc7 {[%clk 0:00:06]} 73. Qa7+ {[%clk 0:00:55]}  Kd6 {[%clk 0:00:06]} 74. Qb8+ {[%clk 0:00:55]}  Ke6 {[%clk 0:00:07]} 75. Qe8+ {[%clk 0:00:55]}  Kf5 {[%clk 0:00:07]} 76. Qe3 {[%clk 0:00:55]}  Qe4 {[%clk 0:00:07]} 77. Qc5+ {[%clk 0:00:55]}  Kf4 {[%clk 0:00:07]} 78. Qd6+ {[%clk 0:00:53]}  Ke3 {[%clk 0:00:06]} 79. Qg3+ {[%clk 0:00:52]}  Kd4 {[%clk 0:00:06]} 80. Qd6+ {[%clk 0:00:50]}  Kc3 {[%clk 0:00:06]} 81. Qc5+ {[%clk 0:00:49]}  Qc4 {[%clk 0:00:07]} 82. Qe3+ {[%clk 0:00:46]}  Qd3 {[%clk 0:00:07]} 83. Qc5+ {[%clk 0:00:46]}  Kd2+ {[%clk 0:00:07]} 84. Kb2 {[%clk 0:00:46]}  Qd5 {[%clk 0:00:05]} 85. Qc1+ {[%clk 0:00:45]}  Kd3 {[%clk 0:00:05]} 86. Qc2+ {[%clk 0:00:43]}  Kd4 {[%clk 0:00:05]} 87. Qd2+ {[%clk 0:00:42]}  Ke4 {[%clk 0:00:04]} 88. Qe2+ {[%clk 0:00:42]}  Kd4 {[%clk 0:00:04]} 89. Qf2+ {[%clk 0:00:42]}  Ke5 {[%clk 0:00:05]} 90. Qe3+ {[%clk 0:00:41]}  Qe4 {[%clk 0:00:04]} 91. Qc5+ {[%clk 0:00:41]}  Kf4 {[%clk 0:00:05]} 92. Qf2+ {[%clk 0:00:39]}  Qf3 {[%clk 0:00:05]} 93. Qd2+ {[%clk 0:00:39]}  Qe3 {[%clk 0:00:05]} 94. Qh2+ {[%clk 0:00:33]}  Ke4 {[%clk 0:00:06]} 95. Qh1+ {[%clk 0:00:29]}  Qf3 {[%clk 0:00:04]} 96. Qh7+ {[%clk 0:00:27]}  Ke3 {[%clk 0:00:04]} 97. Qe7+ {[%clk 0:00:26]}  Qe4 {[%clk 0:00:05]} 98. Qg5+ {[%clk 0:00:26]}  Kd3 {[%clk 0:00:04]} 99. Ka3 {[%clk 0:00:18]}  Qe3 {[%clk 0:00:04]} 100. Qg2 {[%clk 0:00:10]}  Kc4+ {[%clk 0:00:04]} 101. Ka2 {[%clk 0:00:10]}  Qb3+ {[%clk 0:00:04]} 102. Ka1 {[%clk 0:00:11]}  Qa3+ {[%clk 0:00:05]} 103. Kb1 {[%clk 0:00:11]}  Qxb4+ {[%clk 0:00:06]} 104. Ka1 {[%clk 0:00:10]}  Qc3+ {[%clk 0:00:07]} 105. Kb1 {[%clk 0:00:10]}  Qd3+ {[%clk 0:00:07]} 106. Ka1 {[%clk 0:00:10]}  b4 {[%clk 0:00:07]} 107. Qxc6+ {[%clk 0:00:10]}  Kb3 {[%clk 0:00:08]} 108. Qe6+ {[%clk 0:00:09]}  Kc2 {[%clk 0:00:08]} 109. Qa2+ {[%clk 0:00:08]}  Kd1 {[%clk 0:00:07]} 110. Qb1+ {[%clk 0:00:08]}  Ke2 {[%clk 0:00:03]} 111. Qxb4 {[%clk 0:00:08]}  Qd1+ {[%clk 0:00:04]} 112. Ka2 {[%clk 0:00:08]}  Qd2+ {[%clk 0:00:05]} 113. Ka3 {[%clk 0:00:09]}  Qxb4+ {[%clk 0:00:03]} 114. Kxb4 {[%clk 0:00:10]} 1/2-1/2


[Site "https://www.chess.com"]

[Event "Titled Tuesday Blitz December 20 Early 2022"]
[White "Andrii_Prydun"]
[Black "German, Gustavo"]
[BlackFideId "103640"]
[WhiteElo "2387"]
[BlackElo "2515"]
[Result "1-0"]
[Round "03"]
[TimeControl "180+2"]
[Date "2022.12.20"]
[WhiteClock "0:00:05"]
[BlackClock "0:00:01"]

1. e4 {[%clk 0:03:00]}  c5 {[%clk 0:02:57]} 2. Nf3 {[%clk 0:03:00]}  Nf6 {[%clk 0:02:56]} 3. e5 {[%clk 0:02:59]}  Nd5 {[%clk 0:02:56]} 4. Bd3 {[%clk 0:02:58]}  Nc6 {[%clk 0:02:55]} 5. Be4 {[%clk 0:02:57]}  Nc7 {[%clk 0:02:54]} 6. Bxc6 {[%clk 0:02:55]}  dxc6 {[%clk 0:02:54]} 7. h3 {[%clk 0:02:55]}  g6 {[%clk 0:02:53]} 8. b3 {[%clk 0:02:53]}  Bg7 {[%clk 0:02:53]} 9. Bb2 {[%clk 0:02:54]}  O-O {[%clk 0:02:53]} 10. O-O {[%clk 0:02:53]}  Ne6 {[%clk 0:02:46]} 11. Re1 {[%clk 0:02:52]}  b6 {[%clk 0:02:44]} 12. d3 {[%clk 0:02:51]}  Nd4 {[%clk 0:02:40]} 13. Nbd2 {[%clk 0:02:51]}  Be6 {[%clk 0:02:35]} 14. a3 {[%clk 0:02:45]}  Nxf3+ {[%clk 0:02:33]} 15. Nxf3 {[%clk 0:02:44]}  b5 {[%clk 0:02:27]} 16. Qc1 {[%clk 0:02:40]}  c4 {[%clk 0:02:26]} 17. dxc4 {[%clk 0:02:39]}  bxc4 {[%clk 0:02:26]} 18. b4 {[%clk 0:02:38]}  Bd5 {[%clk 0:02:25]} 19. Nh2 {[%clk 0:02:30]}  a5 {[%clk 0:02:21]} 20. Bc3 {[%clk 0:02:29]}  axb4 {[%clk 0:02:14]} 21. axb4 {[%clk 0:02:29]}  Qb6 {[%clk 0:02:11]} 22. Ng4 {[%clk 0:02:26]}  h5 {[%clk 0:02:09]} 23. Ne3 {[%clk 0:02:09]}  Be6 {[%clk 0:02:05]} 24. Ra5 {[%clk 0:02:08]}  Bh6 {[%clk 0:02:02]} 25. Qa1 {[%clk 0:02:06]}  Rad8 {[%clk 0:01:57]} 26. Rc5 {[%clk 0:01:20]}  Ra8 {[%clk 0:01:44]} 27. Qb2 {[%clk 0:01:15]}  Bxe3 {[%clk 0:01:36]} 28. Rxe3 {[%clk 0:01:12]}  Rfd8 {[%clk 0:01:36]} 29. Bd4 {[%clk 0:01:05]}  c3 {[%clk 0:01:16]} 30. Qxc3 {[%clk 0:00:59]}  Qb7 {[%clk 0:01:01]} 31. Ra5 {[%clk 0:00:31]}  Rxa5 {[%clk 0:00:44]} 32. bxa5 {[%clk 0:00:30]}  c5 {[%clk 0:00:45]} 33. Bxc5 {[%clk 0:00:28]}  Qb1+ {[%clk 0:00:20]} 34. Kh2 {[%clk 0:00:28]}  Rd1 {[%clk 0:00:16]} 35. Kg3 {[%clk 0:00:18]}  h4+ {[%clk 0:00:15]} 36. Kxh4 {[%clk 0:00:17]}  Rh1 {[%clk 0:00:13]} 37. Bxe7 {[%clk 0:00:14]}  Qb8 {[%clk 0:00:03]} 38. Qd4 {[%clk 0:00:11]}  Qa8 {[%clk 0:00:02]} 39. Qd8+ {[%clk 0:00:10]}  Qxd8 {[%clk 0:00:03]} 40. Bxd8 {[%clk 0:00:11]}  Rc1 {[%clk 0:00:03]} 41. Ra3 {[%clk 0:00:09]}  Rxc2 {[%clk 0:00:03]} 42. a6 {[%clk 0:00:09]}  Rc8 {[%clk 0:00:03]} 43. Bb6 {[%clk 0:00:08]}  Bd5 {[%clk 0:00:04]} 44. g3 {[%clk 0:00:07]}  Bc6 {[%clk 0:00:02]} 45. Rc3 {[%clk 0:00:06]}  Kg7 {[%clk 0:00:02]} 46. a7 {[%clk 0:00:06]}  Kf8 {[%clk 0:00:01]} 47. Rxc6 {[%clk 0:00:05]} 1-0


[Site "https://www.chess.com"]